Cogmind - Beta 12 *** ADVENTURER MODE // 2023.10.28 @ 19:16:50 Player: Khazzy Result: Destroyed by G-34 Mercenary with Small Laser Performance ------------- Evolutions (1) 500 Regions Visited (3) 600 Robots Destroyed (17) 85 Value Destroyed (576) 576 Prototype IDs (3) 60 Alien Tech Used (0) 0 Bonus (0) 0 TOTAL SCORE: 1821 Bonus ------- None Cogmind --------- Core Integrity 0/400 Matter 300/300 Energy 100/100 System Corruption 0% Temperature Cool (21) Movement Core (1350) Ox26 Location -9/Storage Parts ------- > --- POWER (1) -------- (None) > --- PROPULSION (4) --- (None) > --- UTILITY (2) ------ Huge Storage Unit > --- WEAPON (2) ------- (None) > --- INVENTORY (25) --- Light Ion Engine Wheel Compact Wheel Improved Heat Sink Cooling System Medium Storage Unit Large Storage Unit Large Storage Unit Medium Battery (150) High-capacity Battery (250) Weight Redist. System Light Armor Plating Shield Generator Shield Generator Shield Generator Shield Generator EM Pulse Gun Grenade Launcher Peak State ------------ > --- POWER ------------ Light Nuclear Core > --- PROPULSION ------- Aluminum Leg Aluminum Leg Aluminum Leg Aluminum Leg > --- UTILITY ---------- Huge Storage Unit Weight Redist. System > --- WEAPON ----------- Medium Laser Particle Gun > --- INVENTORY -------- Ion Engine Light Ion Engine Wheel Compact Wheel Improved Heat Sink Cooling System Medium Storage Unit Large Storage Unit Medium Battery High-capacity Battery Weight Redist. System Light Armor Plating Shield Generator Shield Generator Shield Generator Shield Generator EM Pulse Gun Grenade Launcher [Rating: 15] Favorites ----------- Power Light Nuclear Core Engine Light Ion Engine Power Core Light Nuclear Core Propulsion Aluminum Leg Treads Light Treads Leg Aluminum Leg Wheel Wheel Utility Huge Storage Unit Device Weight Redist. System Storage Huge Storage Unit Weapon Particle Gun Energy Gun Particle Gun Ballistic Gun Assault Rifle Build | -11 -10 -9 -9 ------- Run | Jun Mat Mat Sto Slots Evolved 2 | . . 2 . Power . | . . . . Propulsion 2 | . . 2 . Utility . | . . . . Weapon . | . . . . Parts Attached 23 | 7 13 2 1 Power 3 | 1 1 . 1 Engine 2 | 1 . . 1 Core 1 | . 1 . . Reactor . | . . . . Propulsion 11 | 3 6 2 . Treads 1 | 1 . . . Leg 8 | 2 4 2 . Wheel 2 | . 2 . . Hover . | . . . . Flight . | . . . . Utility 5 | 1 4 . . Device 2 | . 2 . . Storage 3 | 1 2 . . Processor . | . . . . Hackware . | . . . . Protection . | . . . . Artifact . | . . . . Weapon 4 | 2 2 . . Energy Gun 3 | 1 2 . . Energy Cannon . | . . . . Ballistic Gun 1 | 1 . . . Ballistic Cannon . | . . . . Launcher . | . . . . Special Weapon . | . . . . Impact Weapon . | . . . . Slashing Weapon . | . . . . Piercing Weapon . | . . . . Special Melee Weapon . | . . . . Unidentified Prototypes . | . . . . Parts Lost 11 | . 2 . 9 Power 2 | . . . 2 Propulsion 4 | . . . 4 Utility 2 | . 1 . 1 Weapon 3 | . 1 . 2 Highest Loss Streak 5 | . 1 . 5 To Critical Strikes . | . . . . Average Slot Usage (%) 96 | . 98 100 90 Engine 2 | . 2 . 1 Core 10 | . 11 11 8 Leg 28 | . 25 44 39 Wheel 2 | . 2 . . Device 12 | . 12 11 10 Storage 13 | . 14 11 11 Energy Gun 19 | . 19 22 18 Ballistic Gun 6 | . 8 . . Naked Turns . | . . . . Heaviest Build 91 | 12 91 90 90 Greatest Support 46 | 20 26 46 46 Greatest Overweight (x) 9 | 2 4 1 9 Average Overweight (x) 1 | . 2 1 1 Largest Inventory Capacity 25 | 8 25 25 25 Average Capacity 21 | 7 21 25 25 Most Carried 21 | 8 21 19 19 Average Carried 16 | 4 15 18 18 Final Capacity 25 | 8 25 25 25 Final Carried 20 | 4 20 19 18 Class Distribution -------------------- 74% | Scavenger-Mutant 25% | Mutant Dominant Class ---------------- Scavenger-Mutant | -10/Materials Scavenger-Mutant | -9/Materials Scavenger-Mutant | -9/Storage Resources | -11 -10 -9 -9 ----------- Run | Jun Mat Mat Sto Matter Collected 541 | 203 318 . 20 Remotely 228 | . 228 . . Salvage Created 670 | . 492 . 178 Parts 34 | . 30 . 4 Haulers Intercepted . | . . . . Recyclers Shooed . | . . . . Parts Field Recycled . | . . . . Retrieved Matter . | . . . . Parts Self-Destructed . | . . . . Prevented . | . . . . Kills | -11 -10 -9 -9 ------- Run | Jun Mat Mat Sto Combat Hostiles Destroyed 14 | . 10 . 4 Guns 14 | . 10 . 4 Classes Destroyed 4 | . 2 . 2 Watcher 3 | . 3 . . Grunt 12 | . 10 . 2 Brawler 1 | . . . 1 Sentry 1 | . . . 1 Best Kill Streak 4 | . 2 . 4 Combat Bots Only 4 | . 2 . 4 Max Kills in Single Turn 1 | . 1 . 1 Gunslinging . | . . . . Exploded . | . . . . Melee . | . . . . Uniques/NPCs Destroyed . | . . . . Combat | -11 -10 -9 -9 -------- Run | Jun Mat Mat Sto Damage Taken 1540 | . 427 . 1113 Core 481 | . 78 . 403 Absorbed by Shields . | . . . . Core Remaining (%) 84 | 100 68 . . Volleys Fired 59 | . 48 . 11 Largest 2 | . 2 . 2 Hottest 115 | . 115 . 115 Shots Fired 117 | . 98 . 19 Gun 117 | . 98 . 19 Cannon . | . . . . Launcher . | . . . . Special . | . . . . Kinetic 44 | . 44 . . Thermal 73 | . 54 . 19 Explosive . | . . . . Electromagnetic . | . . . . Robot Hit Streak 25 | . 25 . 10 Robot Miss Streak 5 | . 5 . 1 Penetration Max . | . . . . Secondary Targets . | . . . . Shots Hit Robots 82 | . 65 . 17 Core Hits 31 | 1 23 . 7 Critical Kills . | . . . . Critical Parts Destroyed . | . . . . Critical Strikes 1 | . . . 1 Burn 1 | . . . 1 Melee Attacks . | . . . . Impact . | . . . . Slashing . | . . . . Piercing . | . . . . Sneak Attacks . | . . . . Combat Hostiles . | . . . . Follow-up Attacks . | . . . . Damage Inflicted 1209 | 5 963 . 241 Guns 1144 | . 903 . 241 Cannons . | . . . . Explosions . | . . . . Melee . | . . . . Ramming 65 | 5 60 . . Kinetic 364 | . 364 . . Thermal 780 | . 539 . 241 Explosive . | . . . . Electromagnetic . | . . . . Impact . | . . . . Slashing . | . . . . Piercing . | . . . . Highest Corruption 2 | . 2 . . Average Corruption 2 | . 2 . . Corruption Purged . | . . . . Corruption Blocked . | . . . . Effects 15 | . 15 . . Message Errors 2 | . 2 . . Matter Fused 4 | . 4 . . Heat Flow Errors 1 | . 1 . . Energy Discharges 1 | . 1 . . Data Loss (minor) 2 | . 2 . . Data Loss (major) 1 | . 1 . . Misfires 3 | . 3 . . Alerts 1 | . 1 . . Overload Shots . | . . . . Overflow Damage . | . . . . Projectiles . | . . . . Explosions . | . . . . Melee . | . . . . Knockbacks . | . . . . Impact . | . . . . Kinetic . | . . . . Secondary . | . . . . Self-Inflicted Damage 4 | . 4 . . Shots . | . . . . Rammed 2 | . 1 . 1 Targets Rammed 10 | 1 8 . 1 Kicked 8 | 1 7 . . Crushed . | . . . . Highest Temperature 399 | . 304 . 399 Average Temperature 109 | . 86 . 215 Received Heat Transfer 900 | . 327 . 573 Effects 4 | . . . 4 Shutdowns 1 | . . . 1 Interference 2 | . . . 2 Damage (minor) 1 | . . . 1 Siege Activations . | . . . . Robots Corrupted . | . . . . Combat Hostiles . | . . . . Parts Fried . | . . . . Impact Corruptions . | . . . . Robots Melted . | . . . . Combat Hostiles . | . . . . Parts Melted 4 | . 3 . 1 Heat Transferred 2035 | . 1332 . 703 Parts Sabotaged . | . . . . Parts Stolen . | . . . . Parts Stripped . | . . . . Power Chain Reactions . | . . . . Missiles Intercepted . | . . . . Alert | -11 -10 -9 -9 ------- Run | Jun Mat Mat Sto Peak Influence 206 | . 206 2 124 Initial 2 | . . 2 . Average 28 | . 30 2 28 Maximum Alert Level 1 | . 1 . . Low Security (%) 99 | 100 99 100 100 Level 1 . | . . . . Level 2 . | . . . . Level 3 . | . . . . Level 4 . | . . . . Level 5 . | . . . . High Security . | . . . . Max Security . | . . . . Squads Dispatched 4 | . 1 . 3 Investigation 2 | . 1 . 1 Extermination . | . . . . Reinforcement . | . . . . Assault . | . . . . Garrison 2 | . . . 2 Intercept . | . . . . Searches Triggered . | . . . . Construction Impeded . | . . . . Haulers Reinforced . | . . . . Active Scanning Responses . | . . . . Cargo Convoy Interrupts . | . . . . Stealth | -11 -10 -9 -9 --------- Run | Jun Mat Mat Sto Distress Signals . | . . . . Communications Jammed . | . . . . Distress Signals . | . . . . Times Spotted 32 | . 22 . 10 Peak Tracking Total 4 | . 3 . 4 Tactical Retreats 1 | . . . 1 Traps | -11 -10 -9 -9 ------- Run | Jun Mat Mat Sto Traps Triggered 2 | . 1 . 1 Indirectly . | . . . . Trap Hack Attempts . | . . . . Triggered . | . . . . Disarmed . | . . . . Reprogrammed . | . . . . Reused . | . . . . Traps Extracted . | . . . . Installed . | . . . . Triggered . | . . . . Machines | -11 -10 -9 -9 ---------- Run | Jun Mat Mat Sto Machines Disabled . | . . . . Max in Single Turn . | . . . . Machines Repaired . | . . . . Machines Sabotaged . | . . . . Overloaded Fab Kills . | . . . . Hacking | -11 -10 -9 -9 --------- Run | Jun Mat Mat Sto Machines Accessed 5 | . 4 . 1 Terminals 5 | . 4 . 1 Fabricators . | . . . . Repair Stations . | . . . . Recycling Units . | . . . . Scanalyzers . | . . . . Garrison Access . | . . . . Total Hacks 12 | . 10 . 2 Successful 6 | . 5 . 1 Failed 6 | . 5 . 1 Catastrophic 2 | . 1 . 1 Database Lockouts . | . . . . Manual . | . . . . Terminals 12 | . 10 . 2 Fabricators . | . . . . Repair Stations . | . . . . Recycling Units . | . . . . Scanalyzers . | . . . . Garrison Access . | . . . . Terminal Hacks 6 | . 5 . 1 Part Schematic 1 | . . . 1 Prototype ID Bank 2 | . 2 . . Terminal Index 1 | . 1 . . Locate Traps 1 | . 1 . . Zone Layout 1 | . 1 . . Fabricator Hacks . | . . . . Repair Station Hacks . | . . . . Recycling Unit Hacks . | . . . . Scanalyzer . | . . . . Garrison Access Hacks . | . . . . Unauthorized Hacks . | . . . . Terminals . | . . . . Fabricators . | . . . . Repair Stations . | . . . . Recycling Units . | . . . . Scanalyzers . | . . . . Garrison Access . | . . . . Data Cores Recovered . | . . . . Used . | . . . . Hacking Detections 3 | . 2 . 1 Full Trace Events 1 | . . . 1 Feedback Events . | . . . . Feedback Blocked . | . . . . Robot Schematics Acquired . | . . . . Robots Built . | . . . . Authchips . | . . . . Time . | . . . . Total Robot Build Rating . | . . . . Part Schematics Acquired 1 | . . . 1 Parts Built . | . . . . Authchips . | . . . . Time . | . . . . Total Part Build Rating . | . . . . Parts Repaired . | . . . . Time . | . . . . Parts Recycled . | . . . . Recycled Matter . | . . . . Retrieved Matter . | . . . . Retrieved Components . | . . . . Parts Scanalyzed . | . . . . Part Schematics Acquired . | . . . . Parts Damaged . | . . . . Bothacking | -11 -10 -9 -9 ------------ Run | Jun Mat Mat Sto Used RIF Installer . | . . . . Robots Hacked . | . . . . Non-combat . | . . . . Combat . | . . . . Robot Hacks Applied . | . . . . Relay Couplers Released . | . . . . Fabnet Peak Effective % . | . . . . Robots Rewired . | . . . . Allies Hacked . | . . . . Hacks Repelled . | . . . . Allies | -11 -10 -9 -9 -------- Run | Jun Mat Mat Sto Total Allies . | . . . . Largest Group . | . . . . Highest-Rated Group . | . . . . Highest-Rated Ally . | . . . . Total Orders . | . . . . Ally Attacks . | . . . . Total Damage . | . . . . Kills . | . . . . Allies Corrupted . | . . . . Allies Melted . | . . . . Intel | -11 -10 -9 -9 ------- Run | Jun Mat Mat Sto Robot Analysis Total . | . . . . Derelict Logs Recovered . | . . . . Drone Launches . | . . . . Drone Recoveries . | . . . . Exploration | -11 -10 -9 -9 ------------- Run | Jun Mat Mat Sto Turns Passed 2653 | 74 1875 32 672 Spaces Moved 882 | 48 700 16 118 Core 25 | 24 . . 1 Treads . | . . . . Legs 748 | 24 591 16 117 Wheels 109 | . 109 . . Hover . | . . . . Flight . | . . . . Fastest Speed 50 | 50 120 190 190 Average Speed 224 | 113 234 190 219 Slowest Speed 500 | 150 400 190 500 Overloaded Moves . | . . . . Propulsion Burnouts . | . . . . Robots Hopped . | . . . . Cave-ins Triggered . | . . . . Exploration Rate (%) 28 | 5 82 3 23 Regions Visited 3 Branch Regions 1 Pre-discovered Areas . | . . . . Known Exits Taken . | . . . . Unknown Exits Taken 3 | 1 1 1 . Scrap Searched . | . . . . Spaces Dug . | . . . . Terrain Destroyed . | . . . . Melee . | . . . . Projectile . | . . . . AOE . | . . . . Terrain Rammed . | . . . . Walls Destroyed . | . . . . Machines Disabled . | . . . . Actions | -11 -10 -9 -9 --------- Run | Jun Mat Mat Sto Total 1408 | 66 825 18 499 Wait 393 | . 28 . 365 Move 879 | 47 699 15 118 Hop . | . . . . Pick Up 33 | 9 23 1 . Fast Attach 3 | 3 . . . Attach 11 | 3 5 2 1 Detach 1 | . 1 . . Swap 9 | 1 8 . . Drop 7 | 2 5 . . Fire 59 | . 48 . 11 Melee . | . . . . Ram 2 | . 1 . 1 Kick 8 | 1 7 . . Crush . | . . . . Escape Stasis . | . . . . Rewire 3 | . . . 3 Trap . | . . . . Miscellaneous . | . . . . Route ------- -11/Junkyard -10/Materials (discovered 3 exits: [*Mat x2] / [*Min]) -9/Materials -9/Storage History --------- Turn | Location | Event 19 | -11/Junkyard | Discovered new exit (range 16) 75 | -11/Junkyard | Entered Materials 319 | -10/Materials | Build established: Mutant 570 | -10/Materials | Discovered new exit (range 16) 710 | -10/Materials | Discovered new exit (range 15) 1109 | -10/Materials | Build established: Scavenger-Mutant 1316 | -10/Materials | Discovered new exit (range 12) 1950 | -10/Materials | Entered another Materials area 1950 | -9/Materials | Evolved 2 slots: Propulsion x2 1952 | -9/Materials | Discovered new exit (range 9) 1982 | -9/Materials | Entered Storage 2466 | -9/Storage | Garrison activated, responded to threat 2608 | -9/Storage | Lost 5 parts (3n2w) 2641 | -9/Storage | Core integrity fell below 50% 2651 | -9/Storage | Core integrity fell below 20% 2654 | -9/Storage | Destroyed by G-34 Mercenary with Small Laser Last Messages --------------- Power failure, Lgt. Nuclear Core shutdown. Overheating: Med. Laser damaged (-25). Y-45 Defender heat damages Imp. Ion Engine. K-01 Serf collects debris. Hvy. Assault Rifle melted. Y-45 Defender destroyed. K-01 Serf collects debris. K-01 Serf destroyed. Lgt. Nuclear Core destroyed. K-01 Serf collects debris. Med. Laser destroyed. Critical hit (Burn: +37). Aluminum Leg destroyed. Particle Gun destroyed. Aluminum Leg destroyed. Critical hit (Burn: +37). Aluminum Leg destroyed. Ion Engine destroyed. Weight Redist. System destroyed. Slammed into G-34 Mercenary. Map ----- +----------------------------------------------------+ | ???????????????????????????# #????????????????? | | ???????????????????????????# #????############# | | ???????????????????????????# ###### | | ???????????????????????????# + | | ???????????????????????????# #### | | ???????????????????????????# #??# | | ???????????????????????????# #??# ####+## | | ???????????????????????????##"""#??# # | | ????????????????????????????#"G"#??# # | | ???????????????????????????##" "#### # ! | | ???????????????????????????# # # | | ???????????????????????????# #% # | | ???????????????????????????# ""T"" + # | | ???????????????????????????# """"" ###% # !! | | ???????????????????????????# #?# # | | ???????????????????????????########### #######+# | | ??????????????????????? /%% %*# | | ??????????????????????? ## # | | ??????????????????????? ??# + | | ???????????????????????? ?? ???# ####### | | ???????????????????????????? ?????# #?????? | | ?????????????????????????? ??????# #?????? | | ?????????????????????????#####???????# #?????? | | ???????????????????????###########???# ######? | | ???????????????????????# g #???# +? | | ???????????????????????#Y@"""""" #???# ###? | | ???????????????????????#Yg"????" #####^^ ^ #??? | | ???????????????????????+ "????" / ^ ^#??? | | ?????????????????????? # "????" ######"#### | | ????????????????????? ## ??? #???# ?? | | ????????????????????? ?# ?? #???# # | | ???????????????????? ??# ? #???# #? | | ???????????????????#???###########???# #? | | ?????????????????????????????????????# #?? | | ?????????????????????????????????????# #??? | | ?????????????????????????????????????# #????? | | ?????????????????????????????????????#######?????? | | ?????????????????????????????????????????????????? | | ?????????????????????????????????????????????????? | | ?????????????????????????????????????????????????? | | ?????????????????????????????????????????????????? | | ?????????????????????????????????????????????????? | | ?????????????????????????????????????????????????? | | ?????????????????????????????????????????????????? | | ?????????????????????????????????????????????????? | | ?????????????????????????????????????????????????? | | ?????????????????????????????????????????????????? | | ?????????????????????????????????????????????????? | | ?????????????????????????????????????????????????? | | ?????????????????????????????????????????????????? | +----------------------------------------------------+ Best States ------------- Heat Dissipation 28 Energy Generation 14 Energy Capacity 250 Matter Stores 300 Matter Capacity 300 Sight Range 16 Terrain Scan Density 10 Additional Mass Support 6 Resistance: KI 20 Resistance: TH 20 Resistance: EX 20 Resistance: EM 20 Resistance: I 20 Resistance: S 20 Resistance: P 20 Evasion (%) 55 Offensive Hacking 10 Item Schematics ----------------- VTOL Module | -9/Storage | Hacked Robot Schematics ------------------ None Fabricated ------------ Nothing Alien Tech Used ----------------- None Achievements -------------- None Challenges ------------ None Game ------ Seed AssembledSigixShotgun Manual? 0 Play Time 00:20:29 Cumulative 4.0 hours Start 2023.10.28 @ 18:58:23 End 2023.10.28 @ 19:16:50 Sessions 1 Manual Loads 0 Difficulty Adventurer Special Mode None Game No. 8 Rogue 4 Adventurer 4 Explorer 0 Win Type - Total 0 Types 0/0/0/0/0/0/0/0/0 Lore% 2 Gallery% 6 Achievement% 6 Wizard Run 0 Options --------- ASCII 0 Keyboard 0 Movement Arrows Keybinds 0 Fullscreen 2 Font 18/SmallcapsGlow Map View 76x50 Tactical HUD 0 Map Filters NONE Filters NONE Steam 1 RUN: ba64945a-d761-4ded-ab99-3e99ff795686